bitfinex/quotes_SOLUSD_20240703
["timestamp","ask_amount","ask_price","bid_price","bid_amount"]
[1719966692226,20.0,154.23,154.2,12.88]
[1719966692713,20.34,154.24,154.2,12.88]
[1719966694124,20.34,154.24,154.21,12.88]
[1719966694333,0.34,154.24,154.21,12.88]
[1719966694537,20.34,154.24,154.21,12.88]
[1719966695034,20.34,154.24,154.2,12.88]
[1719966695238,20.34,154.24,154.17,15.2028]
[1719966695415,32.88,154.23,154.19,12.88]
[1719966695617,12.88,154.23,154.19,12.88]
[1719966695855,20.0,154.22,154.19,12.88]
[1719966696025,20.0,154.22,154.17,15.2028]
[1719966696235,20.0,154.22,154.19,12.88]
[1719966696553,20.0,154.23,154.19,12.88]
[1719966701946,20.0,154.23,154.2,14.17689387]
[1719966702150,13.22,154.24,154.17,15.2028]
[1719966702354,20.0,154.23,154.19,12.88]
[1719966703342,12.88,154.21,154.17,12.88]
[1719966703537,20.0,154.2,154.13,15.9961]
[1719966703727,0.17,154.19,154.13,15.9961]
[1719966703933,0.17,154.19,154.07,25.8318274]
[1719966703934,13.22,154.19,154.09,15.9961]
[1719966704153,20.0,154.18,154.09,15.9961]
[1719966704355,20.0,154.18,154.14,12.88]
[1719966705566,20.0,154.18,154.15,1.29728283]
[1719966705746,0.34,154.19,154.15,14.17728283]
[1719966706058,0.34,154.19,154.15,12.88]
[1719966706851,0.34,154.19,154.16,1.29727108]
[1719966707054,0.34,154.19,154.09,15.9961]
[1719966707248,0.34,154.19,154.15,12.88]
[1719966709557,0.34,154.19,154.1,45.0]
[1719966709849,0.34,154.19,154.14,12.88]
[1719966709850,13.22,154.19,154.14,12.88]
[1719966710050,20.0,154.18,154.15,1.2973179]
[1719966710357,20.0,154.18,154.15,14.1773179]
[1719966710659,20.34,154.19,154.15,12.88]
[1719966714944,20.34,154.19,154.11,1.29730066]
[1719966715128,20.34,154.19,154.15,12.88]
[1719966716666,20.34,154.19,154.16,1.29687989]
[1719966718058,20.34,154.19,154.1,45.0]
[1719966718280,20.34,154.19,154.15,12.88]
[1719966718561,20.34,154.19,154.1,45.0]
[1719966718862,33.22,154.19,154.14,12.88]
[1719966719162,20.34,154.19,154.14,12.88]
[1719966721971,20.34,154.19,154.15,12.88]
[1719966722189,0.34,154.19,154.15,12.88]
[1719966727495,13.22,154.19,154.14,12.88]
[1719966727788,20.0,154.18,154.14,12.88]
[1719966728187,20.0,154.18,154.13,12.88]
[1719966728359,20.0,154.18,154.1,45.0]
[1719966728559,0.34,154.17,154.14,12.88]
[1719966729198,0.34,154.17,154.1,45.0]
[1719966729377,0.34,154.17,154.14,12.88]
[1719966733591,20.0,154.18,154.14,12.88]
[1719966733767,20.0,154.18,154.09,35.5261]
[1719966733970,20.0,154.2,154.17,12.88]
[1719966734681,20.0,154.2,154.1,45.0]
[1719966734882,32.88,154.2,154.15,12.88]
[1719966735084,0.34,154.19,154.15,12.88]
[1719966735277,0.34,154.19,154.14,12.88]
[1719966735478,13.22,154.19,154.1,45.0]
[1719966735668,20.0,154.18,154.14,12.88]
[1719966735973,20.0,154.18,154.15,12.88]
[1719966736378,20.0,154.2,154.17,12.88]
[1719966737270,20.0,154.2,154.16,12.88]
[1719966739100,20.0,154.2,154.1,45.0]
[1719966739394,20.0,154.2,154.16,12.88]
[1719966739570,20.0,154.2,154.17,12.88]
[1719966740600,20.0,154.2,154.1,45.0]
[1719966740838,20.0,154.2,154.16,12.88]
[1719966744772,0.17,154.19,154.1,45.0]
[1719966744988,13.22,154.19,154.14,12.88]
[1719966745292,32.88,154.18,154.12,12.88]
[1719966745490,20.34,154.17,154.12,12.88]
[1719966745689,20.34,154.17,154.13,12.88]
[1719966746477,20.0,154.16,154.13,12.88]
[1719966747279,20.34,154.17,154.13,12.88]
[1719966747478,20.0,154.16,154.13,12.88]
[1719966748082,20.0,154.16,154.09,15.9961]
[1719966748379,0.34,154.17,154.09,15.9961]
[1719966748380,0.17,154.15,154.09,15.9961]
[1719966748591,20.34,154.17,154.12,12.88]
[1719966748882,13.22,154.17,154.12,12.88]
[1719966749205,20.0,154.16,154.12,12.88]
[1719966749387,0.34,154.15,154.12,12.88]
[1719966749997,20.0,154.16,154.12,12.88]
[1719966750200,0.17,154.17,154.13,13.34308145]
[1719966750403,0.17,154.17,154.13,12.88]
[1719966750404,20.34,154.17,154.13,12.88]
[1719966751902,20.0,154.17,154.13,12.88]
[1719966752215,20.0,154.17,154.09,15.9961]
[1719966752216,20.0,154.17,154.16,12.88]
[1719966754286,12.88,154.23,154.16,12.88]
[1719966754482,32.88,154.22,154.17,12.88]
[1719966755382,0.17,154.21,154.17,12.88]
[1719966756011,0.34,154.21,154.17,12.88]
[1719966760313,0.34,154.21,154.09,35.5261]
[1719966760510,0.34,154.21,154.18,12.88]
[1719966761994,20.34,154.22,154.18,12.88]
[1719966762409,20.34,154.22,154.19,12.88]
[1719966763496,20.0,154.21,154.19,12.88]
[1719966763698,0.34,154.22,154.19,12.88]
[1719966763893,0.34,154.22,154.18,12.88]
[1719966764101,13.22,154.22,154.17,12.88]
[1719966764398,32.88,154.21,154.17,12.88]
[1719966764710,0.34,154.2,154.17,12.88]
[1719966765789,0.34,154.2,154.18,12.88]
[1719966766199,0.34,154.21,154.18,12.88]
[1719966767508,0.34,154.21,154.17,12.88]
[1719966770817,0.34,154.21,154.1,45.0]
[1719966771026,13.22,154.21,154.1,45.0]
[1719966771322,32.88,154.2,154.15,12.88]
[1719966771519,20.34,154.19,154.15,12.88]
[1719966774099,20.34,154.19,154.09,15.9961]
[1719966774409,12.88,154.18,154.14,12.88]
[1719966774609,20.34,154.17,154.13,12.88]
[1719966776425,20.34,154.17,154.14,12.88]
[1719966777924,20.34,154.17,154.09,15.9961]
[1719966778126,20.34,154.17,154.13,12.88]
[1719966779706,20.34,154.17,154.14,12.88]
[1719966780521,20.0,154.17,154.16,12.88]
[1719966780712,13.5641,154.2,154.16,12.88]
[1719966782122,20.0,154.19,154.09,15.9961]
[1719966782337,0.34,154.18,154.16,12.88]
[1719966784734,0.34,154.18,154.1,45.0]
[1719966785039,0.34,154.18,154.15,12.88]
[1719966786642,0.34,154.18,154.14,12.88]
[1719966786812,151.52,154.24,154.1,45.0]
[1719966786813,13.5641,154.23,154.17,12.88]
[1719966787204,13.5641,154.23,154.19,12.88]
[1719966787930,20.0,154.22,154.19,12.88]
[1719966788135,0.34,154.21,154.19,12.88]
[1719966788716,0.34,154.21,154.2,12.88]
[1719966788915,20.0,154.22,154.2,12.88]
[1719966791623,20.0,154.22,154.21,12.88]
[1719966791825,20.34,154.22,154.21,12.88]
[1719966795249,20.34,154.22,154.17,1.29696954]
[1719966795546,20.0,154.21,154.17,1.29696954]
[1719966795721,0.34,154.22,154.17,1.29696954]
[1719966795923,0.34,154.23,154.17,1.29696954]
[1719966797238,0.34,154.23,154.16,51.52]
[1719966797544,0.34,154.23,154.22,12.88]
[1719966798350,13.5641,154.27,154.22,12.88]
[1719966798558,0.34,154.26,154.23,12.88]
[1719966798923,13.5641,154.27,154.23,12.88]
[1719966799648,20.0,154.26,154.23,12.88]
[1719966800254,0.34,154.25,154.23,12.88]
[1719966804846,0.34,154.25,154.16,51.52]
[1719966805238,0.34,154.25,154.22,12.88]
[1719966805640,0.34,154.25,154.23,12.88]
[1719966807050,20.0,154.26,154.24,12.88]
[1719966807354,20.0,154.28,154.25,12.88]
[1719966807728,20.0,154.28,154.24,12.88]
[1719966808143,20.0,154.28,154.17,15.7012]
[1719966808346,0.34,154.27,154.17,15.7012]
[1719966808545,0.34,154.27,154.25,12.88]
[1719966809557,0.34,154.27,154.24,12.88]
[1719966811738,0.34,154.27,154.25,12.88]
[1719966811950,0.34,154.28,154.26,12.88]
[1719966813360,0.34,154.28,154.22,16.4206]
[1719966813361,0.34,154.28,154.27,12.88]
[1719966816457,20.0,154.3,154.27,12.88]
[1719966816657,6.1946,154.33,154.29,12.88]
[1719966816966,13.5641,154.35,154.24,51.52]
[1719966817133,6.0733,154.37,154.33,12.88]
[1719966817445,6.0733,154.37,154.28,16.4281]
[1719966817446,6.0733,154.37,154.34,12.88]
[1719966817762,14.69466318,154.38,154.35,12.88]
[1719966818145,7.93161223,154.38,154.35,12.88]
[1719966819054,13.5641,154.39,154.35,12.88]
[1719966819253,26.4441,154.39,154.28,16.4281]
[1719966819480,12.88,154.38,154.33,12.88]
[1719966820249,26.4441,154.39,154.34,12.88]
[1719966820662,65.34,154.38,154.34,12.88]
[1719966821549,65.34,154.38,154.35,12.88]
[1719966822376,65.34,154.38,154.28,16.4281]
[1719966822873,12.88,154.36,154.28,16.4281]
[1719966823076,20.34,154.35,154.31,12.88]
[1719966823254,20.34,154.35,154.28,16.4281]
[1719966823464,20.34,154.35,154.31,12.88]
[1719966823870,20.34,154.35,154.32,12.88]
[1719966824974,20.0,154.34,154.32,12.88]
[1719966825270,0.34,154.33,154.22,15.7201]
[1719966825472,13.22,154.33,154.28,12.88]
[1719966825654,20.0,154.32,154.28,12.88]
[1719966825977,0.34,154.31,154.28,12.88]
[1719966826273,0.34,154.31,154.3,12.88]
[1719966827578,0.34,154.31,154.29,12.88]
[1719966828153,0.34,154.31,154.3,12.88]
[1719966828967,20.0,154.34,154.3,12.88]
[1719966829155,0.34,154.33,154.32,12.88]
[1719966829552,20.0488,154.39,154.32,12.88]
[1719966829771,12.88,154.37,154.32,12.88]
[1719966830920,0.34,154.36,154.32,12.88]
[1719966831352,20.34,154.36,154.32,12.88]
[1719966832047,12.88,154.35,154.3,12.88]
[1719966832256,20.34,154.34,154.3,12.88]
[1719966832561,33.22,154.34,154.29,12.88]
[1719966832751,20.34,154.34,154.3,12.88]
[1719966833776,20.34,154.34,154.24,51.52]
[1719966833777,33.22,154.34,154.24,51.52]
[1719966834072,33.22,154.34,154.29,12.88]
[1719966834389,33.22,154.34,154.28,12.88]
[1719966834390,12.88,154.33,154.28,12.88]
[1719966834680,20.34,154.32,154.28,12.88]
[1719966834984,20.34,154.32,154.29,12.88]
[1719966835189,0.34,154.32,154.29,12.88]
[1719966841394,0.34,154.32,154.24,67.3943]
[1719966841571,13.22,154.32,154.27,12.88]
[1719966841770,20.0,154.31,154.27,12.88]
[1719966842087,20.0,154.31,154.24,15.8743]
[1719966842088,0.34,154.3,154.24,15.8743]
[1719966842276,0.34,154.3,154.26,12.88]
[1719966844289,0.34,154.3,154.28,12.88]
[1719966844594,0.34,154.3,154.29,12.88]
[1719966845995,32.9139,154.34,154.29,12.88]
[1719966846165,0.34,154.33,154.3,12.88]
[1719966846369,0.34,154.33,154.29,12.88]
[1719966846874,13.22,154.33,154.28,12.88]
[1719966847072,33.22,154.33,154.28,12.88]
[1719966847276,12.88,154.32,154.24,15.8743]
[1719966847479,12.88,154.32,154.27,12.88]
[1719966847480,20.17,154.31,154.27,12.88]
[1719966847679,0.17,154.3,154.27,12.88]
[1719966853302,13.05,154.3,154.26,12.88]
[1719966853512,20.17,154.29,154.25,12.88]
[1719966853801,0.17,154.28,154.25,12.88]
[1719966857889,0.17,154.28,154.26,12.88]
[1719966858395,0.34,154.29,154.27,12.88]
[1719966858810,0.34,154.3,154.27,12.88]
[1719966859515,0.34,154.3,154.26,12.88]
[1719966860114,0.34,154.3,154.21,6.0911]
[1719966860321,13.22,154.3,154.25,12.88]
[1719966860512,20.0,154.29,154.26,12.88]
[1719966860818,0.34,154.28,154.26,12.88]
[1719966861316,0.34,154.29,154.26,12.88]
[1719966863217,6.4227,154.29,154.26,12.88]
[1719966863398,6.4227,154.29,154.22,12.88]
[1719966863399,12.88,154.27,154.22,12.88]
[1719966863607,20.34,154.26,154.22,12.88]
[1719966864419,20.34,154.26,154.23,12.88]
[1719966864623,0.34,154.26,154.23,12.88]
[1719966864826,0.34,154.26,154.24,12.88]
[1719966865329,20.0,154.27,154.25,12.88]
[1719966865499,20.0,154.31,154.26,12.88]
[1719966866408,0.17,154.3,154.26,12.88]
[1719966866612,0.34,154.3,154.26,12.88]
[1719966866815,6.1372,154.33,154.29,12.88]
[1719966868325,26.4441,154.34,154.29,12.88]
[1719966868524,12.88,154.35,154.3,12.88]
[1719966868831,19.64660162,154.36,154.31,12.88]
[1719966869130,20.0,154.35,154.31,12.88]
[1719966869296,32.88,154.35,154.3,12.88]
[1719966869704,0.34,154.34,154.3,12.88]
[1719966871097,0.34,154.34,154.32,12.88]
[1719966872835,0.17,154.33,154.32,12.88]
[1719966873039,20.0,154.36,154.26,1.29608707]
[1719966873219,0.17,154.35,154.32,12.88]
[1719966874213,0.34,154.35,154.32,12.88]
[1719966874829,0.34,154.35,154.33,12.88]
[1719966875140,0.34,154.35,154.34,12.88]
[1719966878318,0.17,154.35,154.34,12.88]
[1719966879330,0.17,154.36,154.34,12.88]
[1719966879521,20.0,154.39,154.35,12.88]
[1719966880858,0.17,154.38,154.34,12.88]
[1719966881338,0.34,154.38,154.34,12.88]
[1719966882017,20.34,154.38,154.34,12.88]
[1719966882852,33.22,154.38,154.33,12.88]
[1719966884631,33.22,154.38,154.3,15.7122]
[1719966884632,12.88,154.37,154.32,12.88]
[1719966884830,20.34,154.36,154.32,12.88]
[1719966885142,20.34,154.36,154.33,12.88]
[1719966885346,20.0,154.36,154.34,12.88]
[1719966885549,32.88,154.4,154.35,12.88]
[1719966885742,0.34,154.39,154.35,12.88]
[1719966886823,0.34,154.39,154.36,12.88]
[1719966888449,20.0,154.4,154.37,12.88]
[1719966888643,20.0,154.4,154.38,12.88]
[1719966889942,0.34,154.39,154.37,12.88]
[1719966890544,0.34,154.39,154.3,22.0311]
[1719966890729,0.34,154.39,154.35,12.88]
[1719966891847,0.34,154.39,154.36,12.88]
[1719966894461,0.34,154.39,154.37,12.88]
[1719966895653,0.34,154.39,154.36,12.88]
[1719966897644,20.0,154.4,154.37,12.88]
[1719966897950,6.76241638,154.44,154.33,1.29567833]
[1719966897951,20.0,154.39,154.38,12.88]
[1719966898864,20.0,154.39,154.32,51.52]
[1719966899166,32.88,154.42,154.37,12.88]
[1719966899472,0.17,154.4,154.37,12.88]
[1719966899651,0.34,154.41,154.37,12.88]
[1719966899860,0.17,154.4,154.37,12.88]
[1719966900537,0.34,154.41,154.37,12.88]
[1719966901160,0.34,154.41,154.38,12.88]
[1719966901366,0.17,154.4,154.38,12.88]
[1719966901554,0.34,154.42,154.38,12.88]
[1719966902354,0.34,154.42,154.32,51.52]
[1719966902556,13.22,154.42,154.37,12.88]
[1719966902862,20.0,154.41,154.37,12.88]
[1719966903063,0.34,154.4,154.37,12.88]
[1719966907774,12.88,154.39,154.3,22.0311]
[1719966908065,20.34,154.38,154.34,12.88]
[1719966908658,20.34,154.38,154.36,12.88]
[1719966908972,20.0,154.43,154.37,12.88]
[1719966909265,20.0,154.43,154.33,1.29560228]
[1719966909266,0.17,154.42,154.39,12.88]
[1719966911070,0.17,154.42,154.35,15.4624]
[1719966911278,0.17,154.42,154.36,1.29534337]
[1719966911569,0.17,154.42,154.4,12.88]
[1719966912751,0.34,154.43,154.4,12.88]
[1719966913664,0.34,154.43,154.35,15.4624]
[1719966913858,0.34,154.43,154.4,12.88]
[1719966914552,20.0,154.44,154.4,12.88]
[1719966914757,20.0,154.44,154.41,12.88]
[1719966915853,0.17,154.43,154.41,12.88]
[1719966916069,0.34,154.43,154.41,12.88]
[1719966916889,0.34,154.43,154.4,12.88]
[1719966919672,0.34,154.43,154.35,21.5068]
[1719966919858,0.34,154.43,154.4,12.88]
[1719966920690,0.34,154.43,154.41,12.88]
[1719966922154,0.34,154.43,154.4,12.88]
[1719966924361,20.0,154.44,154.42,12.88]
[1719966924572,0.17,154.45,154.42,12.88]
[1719966924880,0.34,154.46,154.42,12.88]
[1719966925387,0.34,154.46,154.43,12.88]
[1719966926059,20.34,154.46,154.43,12.88]
[1719966926282,0.34,154.46,154.43,12.88]
[1719966926584,0.34,154.47,154.43,12.88]
[1719966932166,0.34,154.47,154.44,12.88]
[1719966934482,0.34,154.47,154.45,12.88]
[1719966934685,0.34,154.47,154.46,12.88]
[1719966936304,0.34,154.47,154.45,12.88]
[1719966936478,0.34,154.48,154.45,12.88]
[1719966937497,0.34,154.48,154.46,12.88]
[1719966938191,0.34,154.48,154.45,12.88]
[1719966939384,20.0,154.49,154.45,12.88]
[1719966939589,32.88,154.51,154.46,12.88]
[1719966941012,12.88,154.5,154.45,12.88]
[1719966941203,33.22,154.49,154.44,12.88]
[1719966941499,20.0,154.48,154.44,12.88]
[1719966941716,0.34,154.47,154.4,66.9209]
[1719966942024,0.34,154.47,154.43,12.88]
[1719966944791,0.34,154.47,154.44,12.88]
[1719966950996,20.34,154.48,154.44,12.88]
[1719966951607,20.34,154.48,154.45,12.88]
[1719966951813,20.34,154.48,154.46,12.88]
[1719966951997,12.88,154.51,154.4,66.9209]
[1719966951998,20.0,154.47,154.4,66.9209]
[1719966952198,20.0,154.5,154.46,12.88]
[1719966952410,20.0,154.5,154.47,12.88]
[1719966953105,20.0,154.5,154.46,12.88]
[1719966953305,0.34,154.49,154.46,12.88]
[1719966957102,13.22,154.49,154.4,15.4009]
[1719966957308,32.88,154.48,154.43,12.88]
[1719966957613,20.34,154.47,154.44,12.88]
[1719966957814,20.0,154.47,154.44,12.88]
[1719966958201,20.0,154.47,154.4,28.2809]
[1719966958202,20.0,154.48,154.45,12.88]
[1719966958504,0.34,154.47,154.45,12.88]
[1719966960604,0.34,154.47,154.44,12.88]
[1719966962204,0.34,154.47,154.45,12.88]
[1719966962597,0.34,154.48,154.45,12.88]
[1719966962797,0.34,154.48,154.4,28.2809]
[1719966963012,0.34,154.48,154.44,12.88]
[1719966963923,0.34,154.48,154.4,66.9209]
[1719966964128,0.34,154.48,154.47,12.88]
[1719966965799,0.34,154.48,154.46,12.88]
[1719966965999,0.34,154.49,154.46,12.88]
[1719966970023,20.34,154.5,154.46,12.88]
[1719966970533,12.88,154.47,154.36,16.4345]
[1719966970712,12.88,154.43,154.36,16.4345]
[1719966970907,12.88,154.43,154.39,12.88]
[1719966970908,20.34,154.42,154.39,12.88]
[1719966973237,20.34,154.42,154.38,12.88]
[1719966975134,20.34,154.42,154.36,16.4345]
[1719966975435,20.34,154.42,154.38,12.88]
[1719966978139,20.34,154.42,154.36,16.4345]
[1719966978319,20.34,154.42,154.38,12.88]
[1719966978514,33.22,154.42,154.36,16.4345]
[1719966978714,33.22,154.42,154.37,12.88]
[1719966979114,33.22,154.42,154.36,16.4345]
[1719966979421,33.22,154.42,154.37,12.88]
[1719966983047,0.17,154.44,154.36,16.4345]
[1719966983243,0.17,154.44,154.4,12.88]
[1719966983450,0.34,154.44,154.4,12.88]
[1719966987340,13.22,154.44,154.39,12.88]
[1719966987535,20.0,154.43,154.39,12.88]
[1719966987745,0.34,154.42,154.39,12.88]
[1719966988583,20.0,154.43,154.39,12.88]
[1719966988733,0.34,154.44,154.39,12.88]
[1719966988932,0.34,154.44,154.4,12.88]
[1719966989128,20.34,154.44,154.4,12.88]
[1719966992553,33.22,154.44,154.39,12.88]
[1719966992735,12.88,154.41,154.32,72.782]
[1719966993055,20.0,154.4,154.36,12.88]
[1719966994535,20.0,154.4,154.37,12.88]
[1719966994741,20.0,154.41,154.37,12.88]
[1719966997063,20.0,154.41,154.38,12.88]
[1719966997233,20.34,154.42,154.38,12.88]
[1719966997438,20.34,154.42,154.39,12.88]
[1719966997659,0.34,154.42,154.39,12.88]
[1719966999957,0.34,154.42,154.38,12.88]
[1719967000451,13.22,154.42,154.32,72.782]
[1719967000656,32.88,154.41,154.33,45.0]
[1719967000950,20.34,154.4,154.37,12.88]
[1719967003037,0.34,154.4,154.37,12.88]
[1719967003632,20.34,154.4,154.37,12.88]
[1719967003950,33.22,154.4,154.33,45.0]
[1719967004137,33.22,154.4,154.35,12.88]
[1719967006853,33.22,154.4,154.32,15.1468]
[1719967006854,12.88,154.39,154.32,15.1468]
[1719967007059,20.34,154.38,154.28,22.0318]
[1719967007263,33.22,154.38,154.33,12.88]
[1719967007439,20.34,154.38,154.34,12.88]
[1719967007762,33.22,154.38,154.33,12.88]
[1719967010444,33.22,154.38,154.29,1.29592388]
[1719967010640,33.22,154.38,154.33,12.88]
[1719967011364,20.34,154.38,154.33,12.88]
[1719967011662,33.22,154.38,154.33,12.88]
[1719967012148,12.88,154.37,154.33,12.88]
[1719967012335,20.34,154.36,154.32,12.88]
[1719967013535,33.22,154.36,154.28,15.8941]
[1719967013735,33.22,154.36,154.31,12.88]
[1719967016249,12.88,154.35,154.31,12.88]
[1719967016449,20.34,154.34,154.31,12.88]
[1719967018473,20.0,154.33,154.31,12.88]
[1719967018770,0.34,154.34,154.31,12.88]
[1719967018967,0.34,154.34,154.32,12.88]
[1719967019273,20.0,154.36,154.33,12.88]
[1719967019442,20.0,154.37,154.35,12.88]
[1719967019850,20.0,154.37,154.34,12.88]
[1719967020565,20.0,154.37,154.36,12.88]
[1719967020749,20.34,154.37,154.36,12.88]
[1719967023261,20.34,154.37,154.35,12.88]
[1719967023474,20.0,154.36,154.35,12.88]
[1719967026873,18.9582,154.42,154.35,12.88]
[1719967027075,0.34,154.41,154.37,12.88]
[1719967027961,20.34,154.41,154.37,12.88]
[1719967029875,20.34,154.41,154.3,1.29559153]
[1719967030059,12.88,154.38,154.33,12.88]
[1719967030254,20.34,154.37,154.33,12.88]
[1719967030772,20.34,154.37,154.34,12.88]
[1719967030957,20.0,154.36,154.32,12.88]
[1719967031159,0.34,154.35,154.33,12.88]
[1719967032580,20.34,154.36,154.33,12.88]
[1719967033258,0.34,154.36,154.33,12.88]
[1719967034075,0.34,154.36,154.35,12.88]
[1719967034267,0.35474487,154.41,154.35,12.88]
[1719967034579,0.35474487,154.41,154.32,51.52]
[1719967034874,18.9582,154.42,154.37,12.88]
[1719967035664,20.0,154.41,154.37,12.88]
[1719967035878,20.0,154.41,154.38,12.88]
[1719967036375,0.17,154.4,154.39,12.88]
[1719967036578,13.5641,154.43,154.39,12.88]
[1719967037075,13.5641,154.43,154.4,12.88]
[1719967037255,13.5641,154.43,154.39,12.88]
[1719967037782,13.5641,154.43,154.34,16.6344]
[1719967037783,0.34,154.42,154.38,12.88]
[1719967038273,0.34,154.42,154.33,45.0]
[1719967038274,12.88,154.41,154.33,45.0]
[1719967038466,20.34,154.4,154.36,12.88]
[1719967038666,20.0,154.4,154.36,12.88]
[1719967038857,0.34,154.39,154.36,12.88]
[1719967040559,13.22,154.39,154.34,12.88]
[1719967040752,20.0,154.38,154.34,12.88]
[1719967040979,0.34,154.37,154.34,12.88]
[1719967041162,0.34,154.37,154.35,12.88]
[1719967042273,0.17,154.36,154.35,12.88]
[1719967044172,0.17,154.36,154.3,15.7747]
[1719967044369,0.17,154.36,154.35,12.88]
[1719967044568,0.17,154.36,154.3,15.7747]
[1719967044773,0.17,154.36,154.33,12.88]
[1719967044970,20.17,154.37,154.33,12.88]
[1719967045172,0.17,154.36,154.33,12.88]
[1719967046272,0.17,154.36,154.3,15.7747]
[1719967046587,33.05,154.36,154.32,12.88]
[1719967046883,0.17,154.35,154.32,12.88]
[1719967047986,0.17,154.35,154.26,22.7797]
[1719967048179,0.17,154.35,154.32,12.88]
[1719967056186,0.17,154.35,154.33,12.88]
[1719967056383,0.17,154.36,154.34,12.88]
[1719967056570,20.0,154.35,154.27,45.0]
[1719967056775,0.34,154.36,154.34,12.88]
[1719967056982,0.34,154.36,154.35,12.88]
[1719967058596,20.0,154.39,154.35,12.88]
[1719967058896,20.0,154.39,154.36,12.88]
[1719967060198,0.34,154.38,154.36,12.88]
[1719967060992,0.34,154.38,154.31,16.1324]
[1719967061193,0.34,154.38,154.35,12.88]
[1719967061393,0.34,154.38,154.34,12.88]
[1719967061592,12.88,154.37,154.27,15.7876]
[1719967061901,20.34,154.36,154.32,12.88]
[1719967064115,12.88,154.35,154.3,12.88]
[1719967064287,20.34,154.34,154.3,12.88]
[1719967066396,20.34,154.34,154.31,12.88]
[1719967066598,20.0,154.33,154.31,12.88]
[1719967066912,0.34,154.32,154.31,12.88]
[1719967069292,20.0,154.36,154.31,12.88]
[1719967069613,0.34,154.35,154.33,12.88]
[1719967070511,0.34,154.35,154.32,12.88]
[1719967073714,0.34,154.35,154.27,15.7876]